bitfinex/quotes_BTCUSD_20241023
["timestamp","ask_amount","ask_price","bid_price","bid_amount"]
[1729694910191,0.63413834,66716.0,66715.0,2.0437246]
[1729694910433,0.79755862,66716.0,66715.0,2.0437246]
[1729694910659,0.77455862,66716.0,66715.0,2.1343246]
[1729694911380,0.79802289,66716.0,66715.0,2.1343246]
[1729694912039,0.79802289,66716.0,66715.0,2.2103246]
[1729694913651,0.55886234,66716.0,66715.0,2.2103246]
[1729694913923,0.68673421,66716.0,66715.0,2.2103246]
[1729694914147,0.5588612,66716.0,66715.0,2.2103246]
[1729694915768,0.5608612,66716.0,66715.0,2.2103246]
[1729694916231,0.5588612,66716.0,66715.0,2.2103246]
[1729694916695,0.70717315,66716.0,66715.0,2.2103246]
[1729694917178,0.70729448,66716.0,66715.0,2.2103246]
[1729694920270,0.87985601,66716.0,66715.0,2.2103246]
[1729694920511,0.88185601,66716.0,66715.0,2.2103246]
[1729694920990,0.98185601,66716.0,66715.0,2.2103246]
[1729694922084,0.97985601,66716.0,66715.0,2.2103246]
[1729694925077,1.13112328,66716.0,66715.0,2.2103246]
[1729694925300,0.97985601,66716.0,66715.0,2.2103246]
[1729694925517,0.97986208,66716.0,66715.0,2.2103246]
[1729694925956,0.98186208,66716.0,66715.0,2.2103246]
[1729694926181,0.97986208,66716.0,66715.0,2.2103246]
[1729694927705,0.98186208,66716.0,66715.0,2.2103246]
[1729694927925,0.97986208,66716.0,66715.0,2.2103246]
[1729694928820,0.98186208,66716.0,66715.0,2.2103246]
[1729694929716,0.80930055,66716.0,66715.0,2.2103246]
[1729694930188,0.80730055,66716.0,66715.0,2.2103246]
[1729694930666,0.80930055,66716.0,66715.0,2.2103246]
[1729694931331,0.80730055,66716.0,66715.0,2.2103246]
[1729694931557,0.65897665,66716.0,66715.0,2.2103246]
[1729694931798,0.77061589,66716.0,66715.0,2.2103246]
[1729694932029,0.78184149,66716.0,66715.0,2.2103246]
[1729694932738,0.53051066,66716.0,66715.0,2.2103246]
[1729694935279,0.51928506,66716.0,66715.0,2.2103246]
[1729694935481,0.80987404,66716.0,66715.0,2.2103246]
[1729694935924,0.80987483,66716.0,66715.0,2.2103246]
[1729694936154,0.66052291,66716.0,66715.0,2.2103246]
[1729694936364,0.76052291,66716.0,66715.0,2.0437246]
[1729694937495,0.76052291,66716.0,66715.0,1.9837686]
[1729694937496,1.00455701,66716.0,66715.0,1.9837686]
[1729694937688,0.89403996,66716.0,66715.0,1.7739226]
[1729694938565,0.89403996,66716.0,66715.0,1.7439446]
[1729694938794,0.89403198,66716.0,66715.0,1.6240326]
[1729694939215,0.89403187,66716.0,66715.0,1.6240326]
[1729694939444,0.89401853,66716.0,66715.0,1.6240326]
[1729694939657,0.89401853,66716.0,66715.0,1.5340986]
[1729694940345,0.95631388,66716.0,66715.0,1.4741426]
[1729694940563,5.83845595,66716.0,66715.0,0.54184638]
[1729694940773,6.0702111,66716.0,66715.0,0.54184638]
[1729694940985,1.3580921,66716.0,66715.0,0.54184638]
[1729694941196,1.1151232,66716.0,66715.0,0.54184638]
[1729694941443,0.95633244,66716.0,66715.0,0.54184638]
[1729694942577,0.83331643,66716.0,66715.0,0.54184638]
[1729694942797,0.98459228,66716.0,66715.0,0.54184638]
[1729694943267,0.83331643,66716.0,66715.0,0.54184638]
[1729694948354,0.82210719,66716.0,66715.0,0.54184638]
[1729694948553,0.83329232,66716.0,66715.0,0.54184638]
[1729694948764,0.98379613,66716.0,66715.0,0.54184638]
[1729694951923,0.98380823,66716.0,66715.0,0.54184638]
[1729694952798,0.53549202,66716.0,66715.0,0.54184638]
[1729694953039,0.53749202,66716.0,66715.0,0.62234638]
[1729694953461,0.5373963,66716.0,66715.0,0.62234638]
[1729694954357,0.6603963,66716.0,66715.0,0.62234638]
[1729694954567,0.80566399,66716.0,66715.0,0.54184638]
[1729694955464,0.80567534,66716.0,66715.0,0.54184638]
[1729694955913,0.65840765,66716.0,66715.0,0.63284638]
[1729694957275,0.66040765,66716.0,66715.0,0.63284638]
[1729694957479,0.65840765,66716.0,66715.0,0.63284638]
[1729694957701,0.66040765,66716.0,66715.0,0.63284638]
[1729694957922,0.80376545,66716.0,66715.0,0.63284638]
[1729694958397,0.80176545,66716.0,66715.0,0.63284638]
[1729694959137,0.65841053,66716.0,66715.0,0.63284638]
[1729694959408,0.64919907,66716.0,66715.0,0.63284638]
[1729694960976,0.6604108,66716.0,66715.0,0.63284638]
[1729694961421,0.64919907,66716.0,66715.0,0.54184638]
[1729694962070,0.66041103,66716.0,66715.0,0.54184638]
[1729694962295,0.77094686,66716.0,66715.0,0.54184638]
[1729694962538,0.90807735,66716.0,66715.0,0.54184638]
[1729694963383,0.89686539,66716.0,66715.0,0.54184638]
[1729694963587,1.00740122,66716.0,66715.0,0.54184638]
[1729694964237,1.0186171,66716.0,66715.0,0.54184638]
[1729694965645,1.0786091,66716.0,66715.0,0.54184638]
[1729694967514,1.0786091,66716.0,66715.0,0.42193438]
[1729694967766,1.23002109,66716.0,66715.0,0.27204438]
[1729694968014,1.06747411,66716.0,66715.0,0.27204438]
[1729694968249,6.19255178,66716.0,66715.0,0.27204438]
[1729694970321,5.79529284,66716.0,66715.0,0.27204438]
[1729694970524,6.19274283,66716.0,66715.0,0.27204438]
[1729694971586,6.18151854,66716.0,66715.0,0.27204438]
[1729694971796,6.19274833,66716.0,66715.0,0.27204438]
[1729694972014,6.07274833,66716.0,66715.0,0.27204438]
[1729694974769,6.18328416,66716.0,66715.0,0.27204438]
[1729694975416,6.18328416,66716.0,66704.0,0.000848]
[1729694975417,0.023,66704.0,66701.0,0.001696]
[1729694975641,0.023,66704.0,66689.0,0.00136]
[1729694975642,0.284945,66691.0,66689.0,0.00136]
[1729694975878,0.65899735,66691.0,66689.0,0.00136]
[1729694976144,0.123,66687.0,66666.0,0.0784]
[1729694976355,0.284979,66676.0,66668.0,0.22547745]
[1729694976573,0.71836941,66676.0,66668.0,0.22547745]
[1729694976799,0.7295992,66676.0,66666.0,0.0784]
[1729694977024,0.88010301,66676.0,66666.0,0.0784]
[1729694977248,0.88010301,66676.0,66665.0,5.251e-05]
[1729694977496,1.03024098,66676.0,66665.0,5.251e-05]
[1729694978182,0.162001,66666.0,66665.0,5.251e-05]
[1729694978401,0.78503337,66666.0,66665.0,5.251e-05]
[1729694978628,0.91185885,66666.0,66665.0,5.251e-05]
[1729694981469,0.91185885,66666.0,66665.0,0.00040251]
[1729694982133,0.91142259,66666.0,66665.0,0.00040251]
[1729694982774,0.78254137,66666.0,66665.0,0.00040251]
[1729694983219,0.77754137,66666.0,66665.0,0.00040251]
[1729694983450,0.78254137,66666.0,66665.0,0.00040251]
[1729694983874,0.78454137,66666.0,66665.0,0.00040251]
[1729694984509,0.87176162,66666.0,66665.0,0.00040251]
[1729694984720,1.02426543,66666.0,66665.0,0.00040251]
[1729694984988,1.02226543,66666.0,66665.0,0.00035]
[1729694985179,1.02226728,66666.0,66665.0,0.00035]
[1729694985391,0.93304518,66666.0,66665.0,0.00035]
[1729694985605,0.92187113,66666.0,66665.0,0.00035]
[1729694985849,0.86103796,66666.0,66665.0,0.00035]
[1729694986063,0.31164511,66666.0,66665.0,0.07975]
[1729694986535,0.53712256,66666.0,66665.0,0.07975]
[1729694986747,0.150006,66664.0,66663.0,0.113535]
[1729694986961,0.47357026,66664.0,66663.0,0.113535]
[1729694987175,0.50771056,66664.0,66663.0,0.113535]
[1729694987388,0.65821437,66664.0,66663.0,0.113535]
[1729694988052,0.75821437,66664.0,66663.0,0.113535]
[1729694988707,0.82511386,66664.0,66663.0,0.113535]
[1729694989137,0.82511382,66664.0,66663.0,0.113535]
[1729694989821,0.82511382,66664.0,66663.0,2.913535]
[1729694990035,0.93481316,66664.0,66663.0,2.913535]
[1729694990281,0.93481316,66664.0,66663.0,2.817635]
[1729694990511,1.19709849,66664.0,66663.0,2.817635]
[1729694990733,1.20299221,66664.0,66663.0,2.817635]
[1729694990963,0.94070688,66664.0,66663.0,2.817635]
[1729694991865,1.11376733,66664.0,66663.0,2.817635]
[1729694992090,0.94070688,66664.0,66663.0,2.817635]
[1729694992360,1.22529951,66664.0,66663.0,2.817635]
[1729694992781,1.22530714,66664.0,66663.0,2.817635]
[1729694993675,0.94071451,66664.0,66663.0,2.817635]
[1729694994580,0.93871451,66664.0,66663.0,2.817635]
[1729694994827,0.87929241,66664.0,66663.0,2.817635]
[1729694995254,0.87729241,66664.0,66663.0,2.817635]
[1729694995554,0.7882107,66664.0,66663.0,2.817635]
[1729694995998,0.78801223,66664.0,66663.0,2.817635]
[1729694996511,0.77411572,66664.0,66663.0,2.817635]
[1729694996725,1.02760447,66664.0,66663.0,2.817635]
[1729694996954,1.02761002,66664.0,66663.0,2.817635]
[1729694998082,1.02961002,66664.0,66663.0,2.817635]
[1729694998533,1.02961002,66664.0,66663.0,2.81846]
[1729694999228,0.98699242,66664.0,66663.0,2.81846]
[1729694999659,1.09833232,66664.0,66663.0,2.81846]
[1729695000667,0.98699651,66664.0,66663.0,2.81846]
[1729695001673,0.98499651,66664.0,66663.0,2.81846]
[1729695001905,0.98699651,66664.0,66663.0,2.81846]
[1729695002669,1.29367567,66664.0,66663.0,2.81846]
[1729695002918,0.98699651,66664.0,66663.0,2.63074391]
[1729695003910,0.98499651,66664.0,66663.0,2.63074391]
[1729695004143,0.98699651,66664.0,66663.0,2.63074391]
[1729695004878,0.98499651,66664.0,66663.0,2.63074391]
[1729695005105,0.98699651,66664.0,66663.0,2.63074391]
[1729695008593,1.15999132,66664.0,66663.0,2.63074391]
[1729695009030,0.98693087,66664.0,66663.0,2.63074391]
[1729695009265,0.97577567,66664.0,66663.0,2.63074391]
[1729695009518,0.98698435,66664.0,66663.0,2.63074391]
[1729695009756,1.1600448,66664.0,66663.0,2.63074391]
[1729695010198,0.98698435,66664.0,66663.0,2.63074391]
[1729695010683,0.98663435,66664.0,66663.0,2.63074391]
[1729695010943,0.83613054,66664.0,66663.0,2.70604391]
[1729695011849,0.83613054,66664.0,66663.0,2.80004391]
[1729695011850,0.94757785,66664.0,66663.0,2.80004391]
[1729695012752,0.82492186,66664.0,66663.0,2.80004391]
[1729695012972,1.12019505,66664.0,66663.0,2.80004391]
[1729695013197,0.98688539,66664.0,66663.0,2.80004391]
[1729695013423,0.98888539,66664.0,66663.0,2.80004391]
[1729695013657,0.98888539,66664.0,66663.0,2.63074391]
[1729695013894,0.98688539,66664.0,66663.0,2.63074391]
[1729695014565,0.98888539,66664.0,66663.0,2.63074391]
[1729695015727,1.13938021,66664.0,66663.0,2.63074391]
[1729695015950,0.98888539,66664.0,66663.0,2.63074391]
[1729695016177,0.98688539,66664.0,66663.0,2.63074391]
[1729695016627,0.98888539,66664.0,66663.0,2.63074391]
[1729695018958,0.98688539,66664.0,66663.0,2.63074391]
[1729695019216,0.62442741,66664.0,66663.0,2.63074391]
[1729695019474,0.62442741,66664.0,66663.0,2.80624391]
[1729695019953,0.62445167,66664.0,66663.0,2.80624391]
[1729695020916,0.52445167,66664.0,66663.0,2.80624391]
[1729695021184,0.67583124,66664.0,66663.0,2.80624391]
[1729695021401,0.52445167,66664.0,66663.0,2.80624391]
[1729695021623,0.37444567,66664.0,66663.0,2.80624391]
[1729695021849,0.37444567,66664.0,66663.0,3.12931236]
[1729695021850,0.17748199,66664.0,66663.0,3.12931236]
[1729695022081,0.17748199,66664.0,66663.0,2.80624391]
[1729695022306,0.31321701,66664.0,66663.0,2.80624391]
[1729695023264,0.16735667,66664.0,66663.0,2.80624391]
[1729695023484,0.17857695,66664.0,66663.0,2.80624391]
[1729695023723,0.32858295,66664.0,66663.0,2.80624391]
[1729695024183,0.47908676,66664.0,66663.0,2.80624391]
[1729695024641,0.52580962,66664.0,66663.0,2.80624391]
[1729695024864,0.54880962,66664.0,66663.0,2.80624391]
[1729695025383,0.65080962,66664.0,66663.0,2.80624391]
[1729695025623,0.66080962,66664.0,66663.0,0.000825]
[1729695025860,0.273012,66661.0,66660.0,2.63076691]
[1729695026085,0.82022607,66661.0,66660.0,2.63076691]
[1729695026781,0.80900579,66661.0,66660.0,2.63076691]
[1729695027018,0.82021801,66661.0,66660.0,2.63076691]
[1729695027231,0.93372641,66661.0,66660.0,2.63076691]
[1729695028670,0.93572641,66661.0,66660.0,2.63076691]
[1729695029362,0.93372641,66661.0,66660.0,2.63076691]
[1729695029811,0.93572641,66661.0,66660.0,2.63076691]
[1729695031032,0.93372641,66661.0,66660.0,2.63076691]
[1729695031499,0.64715806,66661.0,66660.0,2.63076691]
[1729695031945,0.4957675,66661.0,66660.0,2.63076691]
[1729695033966,0.49576886,66661.0,66660.0,2.63076691]
[1729695034851,0.37276886,66661.0,66660.0,2.81116691]
[1729695035325,0.47037775,66661.0,66660.0,2.81116691]
[1729695035541,0.6434382,66661.0,66660.0,2.81116691]
[1729695035750,0.7434382,66661.0,66660.0,2.72796691]
[1729695036167,0.7664382,66661.0,66660.0,2.72796691]
[1729695038003,0.7664382,66661.0,66660.0,0.098048]
[1729695038420,0.49576886,66661.0,66660.0,0.098048]
[1729695039713,0.66882931,66661.0,66660.0,0.000848]
[1729695040990,0.66883726,66661.0,66660.0,0.000848]
[1729695041659,0.49577681,66661.0,66660.0,0.000848]
[1729695041845,0.64628062,66661.0,66660.0,0.000848]
[1729695044748,0.64828062,66661.0,66660.0,0.000848]
[1729695048024,0.64628388,66661.0,66660.0,0.000848]
[1729695048470,0.64828388,66661.0,66660.0,0.000848]
[1729695049200,0.64828388,66661.0,66655.0,2.62991891]
[1729695049201,0.173024,66656.0,66655.0,2.62991891]
[1729695049460,0.54711788,66656.0,66655.0,2.62991891]
[1729695049701,0.55916568,66656.0,66655.0,2.62991891]
[1729695050145,0.71061978,66656.0,66655.0,2.62991891]
[1729695050371,0.65916568,66656.0,66655.0,2.62991891]
[1729695050607,0.796851,66656.0,66655.0,2.62991891]
[1729695051900,0.79686665,66656.0,66655.0,2.62991891]
[1729695052546,0.79886665,66656.0,66655.0,2.62991891]
[1729695052972,0.79686665,66656.0,66655.0,2.62991891]
[1729695054308,0.79886665,66656.0,66655.0,2.62991891]
[1729695054520,0.79686665,66656.0,66655.0,2.62991891]
[1729695055159,0.79687095,66656.0,66655.0,2.62991891]
[1729695055581,0.79687095,66656.0,66655.0,2.62292975]
[1729695056830,0.66496071,66656.0,66655.0,2.62292975]
[1729695057718,0.66496071,66656.0,66655.0,2.62375375]
[1729695058562,0.66495299,66656.0,66655.0,2.62375375]
[1729695058997,0.66695299,66656.0,66655.0,2.62375375]
[1729695060277,0.66495299,66656.0,66655.0,2.62375375]
[1729695060495,0.8174568,66656.0,66655.0,2.62375375]
[1729695060974,0.81731027,66656.0,66655.0,2.62375375]
[1729695061626,0.82731027,66656.0,66655.0,2.62375375]
[1729695062321,0.90870518,66656.0,66655.0,2.62375375]
[1729695063219,1.12938657,66656.0,66655.0,2.62375375]
[1729695063406,0.90870518,66656.0,66655.0,2.62375375]
[1729695064105,0.90670518,66656.0,66655.0,2.62375375]
[1729695064341,0.65979414,66656.0,66655.0,2.62375375]
[1729695064563,1.0366241,66656.0,66655.0,2.62375375]
[1729695064775,0.67474852,66656.0,66655.0,2.62375375]
[1729695064993,0.67674852,66656.0,66655.0,2.62375375]
[1729695066327,0.67474852,66656.0,66655.0,2.62375375]
[1729695066824,0.67674852,66656.0,66655.0,2.62375375]
[1729695067040,0.82725233,66656.0,66655.0,2.62375375]
[1729695068143,0.82725549,66656.0,66655.0,2.62375375]
[1729695069028,0.82732932,66656.0,66655.0,2.62375375]
[1729695069270,1.2735198,66656.0,66655.0,2.10332734]
[1729695069491,6.22502047,66656.0,66655.0,1.76603989]
[1729695069732,6.2312917,66656.0,66655.0,1.55553256]
[1729695069962,6.19005745,66656.0,66655.0,1.53578458]
[1729695070187,6.19005745,66656.0,66655.0,1.51610934]
[1729695070406,6.52100288,66656.0,66655.0,1.48923029]
[1729695070627,6.52100288,66656.0,66655.0,1.36921029]
[1729695070847,6.52100288,66656.0,66655.0,1.33920529]
[1729695071287,6.61094288,66656.0,66655.0,1.042187]
[1729695071522,6.69569257,66656.0,66655.0,0.8532625]
[1729695071761,6.37608225,66656.0,66655.0,0.7032375]
[1729695071973,6.37608225,66656.0,66655.0,0.000824]
[1729695072187,0.351966,66655.0,66654.0,0.18365909]
[1729695072399,0.351966,66655.0,66631.0,0.0954]
[1729695072400,0.250075,66633.0,66631.0,0.0954]
[1729695072619,0.75037602,66633.0,66631.0,0.0954]
[1729695072833,0.250078,66632.0,66631.0,0.0954]
[1729695073074,0.250078,66632.0,66625.0,0.0804]
[1729695073075,0.250091,66626.0,66625.0,0.0804]
[1729695073295,0.75039202,66626.0,66625.0,0.0804]
[1729695073512,0.75039202,66626.0,66624.0,0.0931]
[1729695073513,0.273093,66625.0,66624.0,0.0931]
[1729695073724,0.60198869,66625.0,66624.0,0.0931]
[1729695073961,0.61174365,66625.0,66624.0,0.0931]
[1729695074173,0.150105,66620.0,66619.0,0.0804]
[1729695074388,0.36769946,66620.0,66619.0,0.0804]
[1729695074604,0.32351634,66620.0,66619.0,0.0804]
[1729695074827,0.390605,66620.0,66619.0,0.0804]
[1729695075283,0.32351634,66620.0,66619.0,0.0804]
[1729695075517,0.390605,66620.0,66619.0,0.0804]
[1729695075735,0.390605,66620.0,66617.0,0.0971]
[1729695075736,0.150109,66618.0,66617.0,0.0971]
[1729695075971,0.150109,66618.0,66614.0,0.0761]
[1729695075972,0.250116,66615.0,66614.0,0.0761]
[1729695076246,0.250116,66615.0,66608.0,0.000848]
[1729695076247,0.1,66612.0,66608.0,0.000848]
[1729695076458,0.59669326,66609.0,66608.0,0.000848]
[1729695076675,0.73422164,66609.0,66608.0,0.000848]
[1729695076906,0.61952755,66609.0,66608.0,0.000848]
[1729695078322,0.6255621,66609.0,66608.0,0.000848]
[1729695078555,0.62551767,66609.0,66608.0,0.000848]
[1729695078993,0.71034201,66609.0,66608.0,0.000848]
[1729695079209,0.86084582,66609.0,66608.0,0.000848]
[1729695079441,0.79387415,66609.0,66608.0,0.000848]
[1729695079659,0.79587415,66609.0,66608.0,0.000848]
[1729695079885,0.77802148,66609.0,66608.0,0.000848]
[1729695080101,0.77602148,66609.0,66608.0,0.000848]
[1729695081251,0.82058823,66609.0,66608.0,0.000848]
[1729695081468,0.86099512,66609.0,66608.0,0.000848]
[1729695081699,0.63551767,66609.0,66608.0,0.000848]
[1729695081933,0.6533473,66609.0,66608.0,0.000848]
[1729695082145,0.72031897,66609.0,66608.0,0.000848]
[1729695082359,1.03132856,66609.0,66608.0,0.000848]
[1729695082615,1.03132856,66609.0,66598.0,0.000848]
[1729695082616,0.45621245,66599.0,66598.0,0.000848]
[1729695082840,0.68658897,66599.0,66598.0,0.000848]
[1729695083055,0.64700591,66599.0,66598.0,0.000848]
[1729695083268,0.7733323,66599.0,66598.0,0.000848]
[1729695083972,0.60027185,66599.0,66598.0,0.000848]
[1729695084190,0.60606418,66599.0,66598.0,0.000848]
[1729695084639,0.77038746,66599.0,66598.0,0.000848]
[1729695084852,0.86142636,66599.0,66598.0,0.000848]
[1729695085285,0.77238746,66599.0,66598.0,0.000848]
[1729695085731,0.86142636,66599.0,66598.0,0.000848]
[1729695086405,0.77238746,66599.0,66598.0,0.000848]
[1729695086855,0.83243917,66599.0,66598.0,0.000848]
[1729695087079,0.260156,66597.0,66593.0,0.000849]
[1729695087304,0.489241,66597.0,66593.0,0.000849]
[1729695087585,0.44477545,66597.0,66593.0,0.000849]
[1729695090357,0.43477545,66597.0,66594.0,0.1747]
[1729695090767,0.44477545,66597.0,66594.0,0.1747]
[1729695091414,0.43477545,66597.0,66594.0,0.1747]
[1729695091833,0.41177545,66597.0,66594.0,0.1747]
[1729695092487,0.56227926,66597.0,66594.0,0.0982]
[1729695092903,0.62237626,66597.0,66594.0,0.0982]
[1729695093110,0.47187245,66597.0,66594.0,0.0982]
[1729695093321,0.49487245,66597.0,66594.0,0.0982]
[1729695096249,0.49487245,66597.0,66593.0,0.000849]
[1729695096250,0.150163,66594.0,66593.0,0.000849]
[1729695096450,0.42366681,66594.0,66593.0,0.000849]
[1729695096668,1.06351395,66594.0,66593.0,0.000849]
[1729695096893,0.8380365,66594.0,66593.0,0.000849]
[1729695097120,3.07417617,66594.0,66593.0,0.000849]
[1729695097358,3.0315163,66594.0,66593.0,0.000849]
[1729695097611,0.616039,66594.0,66593.0,0.000849]
[1729695097832,0.62719746,66594.0,66593.0,0.000849]
[1729695098284,0.62919746,66594.0,66593.0,0.000849]
[1729695099204,0.69589116,66594.0,66593.0,0.000849]
[1729695099414,0.62919746,66594.0,66593.0,0.000849]
[1729695099630,0.77970127,66594.0,66593.0,0.000849]
[1729695100055,0.84639497,66594.0,66593.0,0.000849]
[1729695100498,0.83523651,66594.0,66593.0,0.000849]
[1729695100713,0.77971698,66594.0,66593.0,0.000849]
[1729695100922,0.84645142,66594.0,66593.0,0.000849]
[1729695101151,0.84445142,66594.0,66593.0,0.000849]
[1729695101384,0.69396274,66594.0,66593.0,0.000849]
[1729695101570,0.69596274,66594.0,66593.0,0.000849]
[1729695103294,0.72932382,66594.0,66593.0,0.000849]
[1729695103539,0.67173981,66594.0,66593.0,0.000849]
[1729695103774,0.6717399,66594.0,66593.0,0.000849]
[1729695103983,0.49867945,66594.0,66593.0,0.000849]
[1729695104197,0.45416695,66594.0,66593.0,0.000849]
[1729695104401,0.65124564,66594.0,66593.0,0.000849]
[1729695105447,0.50074183,66594.0,66593.0,0.000849]
[1729695105667,0.44416695,66594.0,66593.0,0.000749]
[1729695105882,0.45416695,66594.0,66593.0,0.000749]
[1729695106315,0.45416695,66594.0,66588.0,0.000849]
[1729695106316,0.273174,66589.0,66588.0,0.000849]
[1729695106568,0.43486621,66589.0,66588.0,0.000849]
[1729695106780,0.44416511,66589.0,66588.0,0.000849]
[1729695107971,0.43297671,66589.0,66588.0,0.000849]
[1729695108211,0.44419081,66589.0,66588.0,0.000849]
[1729695109322,0.49090316,66589.0,66588.0,0.000849]
[1729695109819,0.49090316,66589.0,66588.0,0.168149]
[1729695109820,0.42119081,66589.0,66588.0,0.168149]
[1729695110954,0.44419081,66589.0,66588.0,0.168149]
[1729695112224,0.49098608,66589.0,66588.0,0.168149]
[1729695114027,0.32119081,66589.0,66588.0,0.168149]
[1729695114557,0.17101681,66589.0,66588.0,0.168149]
[1729695114775,0.32119081,66589.0,66588.0,0.168149]
[1729695114991,0.17104286,66589.0,66588.0,0.168149]
[1729695115485,0.32121686,66589.0,66588.0,0.168149]
[1729695115986,0.02053905,66589.0,66588.0,0.318326]
[1729695116237,0.00165,66598.0,66597.0,0.326656]
[1729695116493,0.00165,66598.0,66597.0,0.1765]
[1729695116494,0.151804,66598.0,66597.0,0.1765]
[1729695117225,0.21893644,66598.0,66597.0,0.1765]
[1729695117466,0.151804,66598.0,66597.0,0.1765]
[1729695118003,0.150174,66589.0,66588.0,0.000849]
[1729695118519,0.19500004,66589.0,66588.0,0.000849]
[1729695118763,0.19500004,66589.0,66588.0,0.177949]
[1729695119000,0.150174,66589.0,66588.0,0.177949]
[1729695119728,0.31578805,66589.0,66588.0,0.177949]
[1729695119974,0.45089999,66589.0,66588.0,0.079049]
[1729695120214,0.33878805,66589.0,66588.0,0.079049]
[1729695122374,0.33895958,66589.0,66588.0,0.079049]
[1729695123535,0.48946339,66589.0,66588.0,0.079049]
[1729695125529,0.48946339,66589.0,66588.0,0.0789647]
[1729695125994,0.48946339,66589.0,66577.0,0.3054]
[1729695125995,0.15024,66560.0,66559.0,0.174]
[1729695126001,0.17324,66560.0,66559.0,0.174]
[1729695126293,0.51208603,66560.0,66559.0,0.174]
[1729695126533,0.51208603,66560.0,66559.0,0.0805]
[1729695126779,0.34630045,66560.0,66559.0,0.0805]
[1729695127035,0.34630045,66560.0,66552.0,0.0935]
[1729695127036,0.150256,66553.0,66552.0,0.0935]
[1729695127294,0.46644542,66553.0,66552.0,0.0935]
[1729695127537,0.30075981,66553.0,66552.0,0.0935]
[1729695127800,0.30075981,66553.0,66546.0,0.005]
[1729695127801,0.61666382,66553.0,66546.0,0.005]
[1729695128049,0.61666382,66553.0,66544.0,0.0935]
[1729695128050,0.150271,66546.0,66545.0,0.005]
[1729695128315,0.19514212,66546.0,66545.0,0.005]
[1729695128561,0.04487112,66547.0,66546.0,0.005]
[1729695128797,0.19537493,66547.0,66546.0,0.005]
[1729695129405,0.15050381,66547.0,66546.0,0.005]
[1729695130074,0.15050381,66547.0,66546.0,0.0868]
[1729695131275,0.22547745,66551.0,66546.0,0.0868]
[1729695131276,0.04487112,66551.0,66546.0,0.0868]
[1729695131516,0.04487112,66553.0,66552.0,0.005]
[1729695131759,0.04487112,66556.0,66552.0,0.155257]
[1729695131980,0.04487112,66556.0,66554.0,0.005]
[1729695132412,0.04487112,66557.0,66554.0,0.005]
[1729695132631,0.19537493,66557.0,66554.0,0.005]
[1729695133365,0.15050381,66557.0,66555.0,0.0984]
[1729695134027,0.04487112,66559.0,66558.0,0.01]
[1729695134254,0.19537493,66561.0,66558.0,0.01]
[1729695134477,0.22547745,66560.0,66558.0,0.01]
[1729695134910,0.37598126,66560.0,66556.0,0.0776]
[1729695135140,0.150247,66557.0,66556.0,0.0776]
[1729695135368,0.30075081,66557.0,66556.0,0.0776]
[1729695135842,0.30075081,66557.0,66549.0,0.005]
[1729695135843,0.150265,66549.0,66548.0,0.0761]
[1729695136063,0.150265,66549.0,66546.0,0.0945]
[1729695136064,0.150269,66547.0,66546.0,0.0945]
[1729695136286,0.30077281,66547.0,66546.0,0.0945]
[1729695137893,0.15050381,66547.0,66546.0,0.0945]
[1729695138118,0.30077281,66547.0,66546.0,0.0945]
[1729695138394,0.30077281,66547.0,66542.0,0.0867]
[1729695138395,0.150278,66543.0,66542.0,0.0817]
[1729695138614,0.150278,66543.0,66539.0,0.005]
[1729695138615,0.150281,66542.0,66539.0,0.005]
[1729695138841,0.30078481,66542.0,66538.0,0.097]
[1729695139525,0.30078481,66542.0,66538.0,0.112]
[1729695139773,0.30078481,66542.0,66538.0,0.107]
[1729695139996,0.30078481,66542.0,66540.0,0.005]
[1729695140686,0.30078481,66542.0,66538.0,0.097]
[1729695140921,0.30078481,66542.0,66540.0,0.005]
[1729695141145,0.30078481,66542.0,66538.0,0.102]
[1729695141361,0.30078481,66542.0,66540.0,0.005]
[1729695142050,0.15050381,66542.0,66540.0,0.005]
[1729695142241,0.30078481,66542.0,66540.0,0.005]
[1729695142701,0.15050381,66542.0,66540.0,0.005]
[1729695143827,0.30078481,66542.0,66540.0,0.005]
[1729695144933,0.15050381,66542.0,66540.0,0.005]
[1729695145156,0.22547745,66545.0,66540.0,0.18806045]
[1729695145384,0.15050381,66544.0,66541.0,0.151131]
[1729695145833,0.15050381,66544.0,66543.0,0.150278]
[1729695146081,0.37017538,66553.0,66546.0,0.310543]
[1729695146082,0.32547745,66553.0,66546.0,0.310543]
[1729695146311,0.15050381,66552.0,66550.0,0.17306045]
[1729695146530,0.150263,66550.0,66546.0,0.015]
[1729695146760,0.15050381,66549.0,66548.0,0.4508]
[1729695146980,0.15050381,66549.0,66547.0,0.150269]
[1729695147472,0.15050381,66549.0,66546.0,0.165271]
[1729695147688,0.300494,66558.0,66549.0,0.01]
[1729695147912,0.22547745,66551.0,66549.0,0.01]
[1729695148142,0.150259,66552.0,66549.0,0.01]
[1729695148362,0.30076281,66552.0,66549.0,0.01]
[1729695148597,0.15050381,66552.0,66549.0,0.01]
[1729695148849,0.15050381,66552.0,66549.0,0.160264]
[1729695149277,0.15050381,66552.0,66549.0,0.01]
[1729695149498,0.15050381,66552.0,66550.0,0.0765]
[1729695149712,0.30076281,66552.0,66550.0,0.0765]
[1729695149939,0.30076181,66552.0,66550.0,0.0765]
[1729695150194,0.15050381,66552.0,66550.0,0.0765]
[1729695150405,0.15050381,66552.0,66551.0,0.15026]
[1729695150620,0.15050381,66552.0,66551.0,0.0965]
[1729695151036,0.15050381,66552.0,66551.0,0.24676]
[1729695151258,0.15050381,66552.0,66551.0,0.0965]
[1729695151471,0.30076181,66552.0,66551.0,0.0965]
[1729695151682,0.15050381,66552.0,66551.0,0.24676]
[1729695152558,0.15050381,66552.0,66551.0,0.0965]
[1729695153243,0.15050381,66552.0,66551.0,0.24676]
[1729695153456,0.15050381,66552.0,66551.0,0.0965]
[1729695153670,0.52595845,66560.0,66553.0,0.300512]
[1729695153671,0.52595745,66560.0,66553.0,0.300512]
[1729695153897,0.52595745,66560.0,66555.0,0.150249]
[1729695153898,0.30239581,66559.0,66555.0,0.150249]
[1729695154167,0.00165,66559.0,66558.0,0.33330445]
[1729695154636,0.150244,66558.0,66554.0,0.01]
[1729695154854,0.15050381,66557.0,66553.0,0.005]
[1729695155112,0.150252,66555.0,66554.0,0.01]
[1729695155335,0.15050381,66557.0,66554.0,0.01]
[1729695155553,0.150251,66555.0,66554.0,0.005]
[1729695155769,0.15050381,66557.0,66553.0,0.005]
[1729695155986,0.150253,66554.0,66553.0,0.005]
[1729695156198,0.150251,66555.0,66554.0,0.005]